fUSD/lending_fUSD_20240119
["ID","MTS","AMOUNT","RATE_DAILY","PERIOD"]
[312232515,1705696306505,-1318.15907268,0.00030958,2]
[312232516,1705696306514,-1323.16313638,0.00030958,2]
[312232517,1705696306524,-1139.58424092,0.00030958,2]
[312232518,1705696306533,-1536.05917199,0.00030958,2]
[312232519,1705696306543,-3452.31001488,0.00030958,2]
[312232520,1705696306553,-4130.86145446,0.00030958,2]
[312232521,1705696306562,-1576.16327369,0.00030958,2]
[312232522,1705696306571,-2438.89637208,0.00030958,2]
[312232523,1705696306581,-1163.9364673,0.00030958,2]
[312232524,1705696306590,-796.89248944,0.00030958,2]
[312232525,1705696306600,-753.24729803,0.00030958,2]
[312232526,1705696306609,-663.52052018,0.00030958,2]
[312232527,1705696306618,-2028.59811607,0.00030958,2]
[312232528,1705696306629,-1637.40729281,0.00030958,2]
[312232529,1705696306638,-1597.99174543,0.00030958,2]
[312232530,1705696306647,-551.7493419,0.00030958,2]
[312232531,1705696306656,-1096.13268939,0.00030958,2]
[312232532,1705696306665,-2179.8771126,0.00030958,2]
[312232533,1705696306675,-617.66860749,0.00030958,2]
[312232534,1705696306684,-750.14412395,0.00030958,2]
[312232535,1705696306692,-509.31356034,0.00030958,2]
[312232536,1705696306702,-2367.343812,0.00030958,2]
[312232537,1705696306712,-529.13,0.00030958,2]
[312232538,1705696306721,-819.77655235,0.00030958,2]
[312232539,1705696306731,-2202.06027818,0.00030958,2]
[312232540,1705696306741,-2013.87222939,0.00030958,2]
[312232541,1705696306750,-1092.23078267,0.00030958,2]
[312232542,1705696306759,-1042.66790723,0.00030958,2]
[312232543,1705696306769,-2082.75358084,0.00030958,2]
[312232544,1705696306779,-1187.39042126,0.00030958,2]
[312232545,1705696306790,-659.2596751,0.00030958,2]
[312232546,1705696306799,-1021.28731294,0.00030958,2]
[312232547,1705696306809,-723.28937044,0.00030958,2]
[312232548,1705696306819,-800.11754355,0.00030958,2]
[312232549,1705696306830,-555.6705482,0.00030958,2]
[312232550,1705696306840,-505.47297385,0.00030958,2]
[312232551,1705696306849,-1092.43071755,0.00030958,2]
[312232552,1705696306859,-766.85015135,0.00030958,2]
[312232553,1705696306868,-622.05443426,0.00030958,2]
[312232554,1705696306879,-607.53505062,0.00030958,2]
[312232555,1705696306889,-516.86105816,0.00030958,2]
[312232556,1705696306899,-1034.72264517,0.00030958,2]
[312232557,1705696306908,-1651.87099323,0.00030958,2]
[312232558,1705696306918,-760.62439783,0.00030958,2]
[312232559,1705696306927,-620.53649699,0.00030958,2]
[312232560,1705696306937,-200.0,0.00030987,2]
[312232561,1705696306946,-200.0,0.00030987,3]
[312232562,1705696306954,-1750.05,0.00030999,2]
[312232563,1705696306963,-2188.819859,0.00030999,7]
[312232564,1705696306972,-2188.819859,0.00030999,7]
[312232565,1705696306981,-450.0,0.00030999,2]
[312232566,1705696306990,-500.0,0.00030999,2]
[312232567,1705696306999,-500.0,0.00030999,2]
[312232568,1705696307009,-500.0,0.00030999,2]
[312232569,1705696307019,-500.0,0.00030999,2]
[312232570,1705696307029,-500.0,0.00030999,2]
[312232571,1705696307038,-500.0,0.00030999,2]
[312232572,1705696307047,-250.0,0.00030999,2]
[312232573,1705696307056,-500.0,0.00030999,2]
[312232574,1705696307067,-500.0,0.00030999,2]
[312232575,1705696307077,-500.0,0.00030999,2]
[312232576,1705696307087,-500.0,0.00030999,2]
[312232577,1705696307097,-500.0,0.00030999,2]
[312232578,1705696307108,-50000.0,0.00031,2]
[312232579,1705696307118,-151.0,0.00031,7]
[312232580,1705696307130,-1791.579559,0.00031,7]
[312232581,1705696307139,-1791.579559,0.00031,7]
[312232582,1705696307148,-1224.974461,0.00031,7]
[312232583,1705696307157,-1224.974461,0.00031,7]
[312232584,1705696307168,-241.430667,0.00031,7]
[312232585,1705696307178,-241.430667,0.00031,7]
[312232586,1705696307188,-256.29731718,0.00031,4]
[312232587,1705696307198,-150.0,0.00031,2]
[312232588,1705696307207,-150.1,0.00031,2]
[312232589,1705696307218,-300.0,0.00031,2]
[312232590,1705696307230,-151.6187915,0.00031001,2]
[312232591,1705696307239,-500.0,0.0003105,2]
[312232592,1705696307249,-500.0,0.0003105,2]
[312232593,1705696307258,-500.0,0.0003105,2]
[312232594,1705696307268,-500.0,0.0003105,2]
[312232595,1705696307277,-500.0,0.0003105,2]
[312232596,1705696307287,-500.0,0.0003105,2]
[312232597,1705696307297,-500.0,0.0003105,2]
[312232598,1705696307307,-500.0,0.0003105,2]
[312232599,1705696307316,-500.0,0.0003105,2]
[312232600,1705696307324,-500.0,0.0003105,2]
[312232601,1705696307333,-500.0,0.0003105,2]
[312232602,1705696307342,-500.0,0.0003105,2]
[312232603,1705696307352,-500.0,0.0003105,2]
[312232604,1705696307362,-500.0,0.0003105,2]
[312232605,1705696307371,-500.0,0.0003105,2]
[312232606,1705696307382,-500.0,0.0003105,2]
[312232607,1705696307391,-500.0,0.0003105,2]
[312232608,1705696307403,-500.0,0.0003105,2]
[312232609,1705696307412,-500.0,0.0003105,2]
[312232610,1705696307422,-500.0,0.0003105,2]
[312232611,1705696307431,-500.0,0.0003105,2]
[312232612,1705696307440,-500.0,0.0003105,2]
[312232613,1705696307450,-500.0,0.0003105,2]
[312232614,1705696307458,-500.0,0.0003105,2]
[312232615,1705696307467,-500.0,0.0003105,2]
[312232616,1705696307477,-500.0,0.0003105,2]
[312232617,1705696307625,-500.0,0.0003105,2]
[312232618,1705696307653,-500.0,0.0003105,2]
[312232619,1705696307662,-500.0,0.0003105,2]
[312232620,1705696307670,-500.0,0.0003105,2]
[312232621,1705696307679,-500.0,0.0003105,2]
[312232622,1705696307688,-500.0,0.0003105,2]
[312232623,1705696307698,-500.0,0.0003105,2]
[312232624,1705696307707,-500.0,0.0003105,2]
[312232625,1705696307717,-153.84,0.0003105,2]
[312232626,1705696307727,-152.33044919,0.00031104,2]
[312232627,1705696307738,-500.0,0.00031175,2]
[312232628,1705696307748,-500.0,0.00031175,2]
[312232629,1705696307758,-500.0,0.00031175,2]
[312232630,1705696307768,-500.0,0.00031175,2]
[312232631,1705696307778,-500.0,0.00031175,2]
[312232632,1705696307788,-500.0,0.00031175,2]
[312232633,1705696307798,-500.0,0.00031175,2]
[312232634,1705696307807,-500.0,0.00031175,2]
[312232635,1705696307816,-500.0,0.00031175,2]
[312232636,1705696307826,-500.0,0.00031175,2]
[312232637,1705696307835,-500.0,0.00031175,2]
[312232638,1705696307845,-500.0,0.00031175,2]
[312232639,1705696307854,-500.0,0.00031175,2]
[312232640,1705696307864,-500.0,0.00031175,2]
[312232641,1705696307876,-500.0,0.00031175,2]
[312232642,1705696307887,-500.0,0.00031175,2]
[312232643,1705696307896,-500.0,0.00031175,2]
[312232644,1705696307905,-500.0,0.00031175,2]
[312232645,1705696307914,-500.0,0.00031175,2]
[312232646,1705696307923,-500.0,0.00031175,2]
[312232647,1705696307932,-500.0,0.00031175,2]
[312232648,1705696307941,-696.92,0.0003118,2]
[312232649,1705696307950,-150.0,0.00031185,2]
[312232650,1705696307959,-300.0,0.00031185,2]
[312232651,1705696307969,-690.98,0.00031185,2]
[312232652,1705696307978,-583.84,0.00031185,2]
[312232653,1705696307988,-300.0,0.00031185,2]
[312232654,1705696307998,-151.6187915,0.00031254,2]
[312232655,1705696308007,-1153.77658422,0.00031424,3]
[312232656,1705696308018,-1000.0,0.000315,2]
[312232657,1705696308027,-6917.42574564,0.000315,2]
[312232658,1705696308037,-1250.82,0.00031506,2]
[312232659,1705696308047,-280.77630945,0.00031507,2]
[312232660,1705696308377,-365.43369055,0.00031507,2]
[312232661,1705696308387,-155.0,0.00031507,2]
[312232662,1705696308396,-151.6187915,0.00031508,2]
[312232663,1705696308405,-5451.26201117,0.00031547,3]
[312232664,1705696308415,-500.0,0.00031603,7]
[312232665,1705696308425,-156.25,0.00031612,2]
[312232666,1705696308434,-741.82241407,0.00031633,19]
[312232667,1705696308443,-184.18,0.00031644,2]
[312232668,1705696308453,-6847.12647988,0.0003168,2]
[312232669,1705696308462,-160.0,0.000317,2]
[312232670,1705696308470,-151.6187915,0.00031761,2]
[312232671,1705696308479,-1750.05,0.00031799,2]
[312232672,1705696308489,-154.8249499,0.00031799,2]
[312232673,1705696308499,-150.0,0.00031799,2]
[312232674,1705696308509,-151.0,0.000318,7]
[312232675,1705696308519,-151.0,0.000318,7]
[312232676,1705696308528,-151.0,0.000318,7]
[312232677,1705696308537,-153.525408,0.000318,7]
[312232678,1705696308548,-153.525408,0.000318,7]
[312232679,1705696308558,-151.0,0.000318,7]
[312232680,1705696308568,-2188.819859,0.000318,7]
[312232681,1705696308576,-2188.819859,0.000318,7]
[312232682,1705696308586,-182.859968,0.000318,7]
[312232683,1705696308595,-182.859968,0.000318,7]
[312232684,1705696308604,-220.267706,0.000318,7]
[312232685,1705696308616,-220.267706,0.000318,7]
[312232686,1705696308625,-151.0,0.000318,7]
[312232687,1705696308636,-1791.579559,0.000318,7]
[312232688,1705696308647,-1791.579558,0.000318,7]
[312232689,1705696308656,-99261.81794316,0.000318,2]
[312232690,1705696308672,-297.54992735,0.000318,2]
[312232691,1705696308686,-9191.94664031,0.000318,2]
[312232692,1705696308934,-500.0,0.00024657,2]
[312232693,1705696308944,-500.0,0.00024657,2]
[312232694,1705696308954,-500.0,0.00024657,2]
[312232695,1705696308962,-583.26,0.00024657,2]
[312232696,1705696308973,-3607.46,0.00026575,2]
[312232697,1705696308983,-3607.46,0.00026849,2]
[312232698,1705696308993,-3607.46,0.00027123,2]
[312232699,1705696309003,-3607.46,0.00027397,2]
[312232700,1705696309013,-196141.75624563,0.000318,2]
[312232701,1705696309025,-1810.0541847,0.000318,2]
[312232702,1705696309063,-952.70227919,0.00027671,2]
[312232703,1705696309075,-2654.75772081,0.00027671,2]
[312232704,1705696309086,-5763.84227919,0.000318,2]
[312232705,1705696309098,-1313.31181257,0.000318,2]
[312232706,1705696309326,-254.86173603,0.00024656,2]
[312232707,1705696309344,-44.94035858,0.00024656,2]
[312232708,1705696309353,-500.0,0.00024657,2]
[312232709,1705696309363,-257.14,0.00024657,2]
[312232710,1705696309373,-500.0,0.00024657,2]
[312232711,1705696309384,-284.54573938,0.00024657,2]
[312232712,1705696309395,-3607.46,0.00027945,2]
[312232713,1705696309405,-3321.31231035,0.00028219,2]
[312232714,1705696309419,-286.14768965,0.00028219,2]
[312232715,1705696309431,-3607.46,0.00028493,2]
[312232716,1705696309441,-3607.46,0.00028767,2]
[312232717,1705696309450,-3607.46,0.00029041,2]
[312232718,1705696309459,-3607.46,0.00029315,2]
[312232719,1705696309469,-150.0,0.00029593,2]
[312232720,1705696309479,-150.0,0.00029714,2]
[312232721,1705696309488,-150.0,0.00029959,2]
[312232722,1705696309497,-500.0,0.00030999,2]
[312232723,1705696309507,-500.0,0.00030999,2]
[312232724,1705696309516,-500.0,0.00030999,2]
[312232725,1705696309525,-500.0,0.00030999,2]
[312232726,1705696309535,-500.0,0.00030999,2]
[312232727,1705696309545,-500.0,0.00030999,2]
[312232728,1705696309554,-79137.97648558,0.000318,2]
[312232729,1705696309568,-532.98005436,0.000318,2]
[312232730,1705696309580,-847.17284816,0.000318,2]
[312232731,1705696309593,-1403.7598275,0.000318,2]
[312232732,1705696309606,-1176.54156301,0.000318,2]
[312232733,1705696309617,-3038.82060904,0.000318,2]
[312232734,1705696309631,-281.13637335,0.000318,2]
[312232735,1705696309643,-431.60659171,0.000318,2]
[312232736,1705696309654,-1023.7,0.000318,2]
[312232737,1705696309665,-714.2364726,0.000318,2]
[312232738,1705696309680,-1450.16783378,0.000318,2]
[312232739,1705696309699,-3607.46,0.00029589,2]
[312232740,1705696309708,-500.0,0.00030999,2]
[312232741,1705696309717,-3725.1358423,0.000318,2]
[312232742,1705696309729,-9220.5055887,0.000318,2]
[312232743,1705696309738,-228.50117156,0.000318,7]
[312232744,1705696311008,155.58,0.00021609,2]
[312232745,1705696313276,880.0,0.00021396,2]
[312232746,1705696345946,164.08,0.00021644,2]
[312232747,1705696361478,171.47,0.00016712,2]
[312232750,1705696413966,204.0,0.00020993,2]
[312232751,1705697124515,-248.80090434,0.00021985,2]
[312232752,1705697124536,-516.62500609,0.00021986,2]
[312232753,1705697124557,-2000.0,0.00022,2]
[312232754,1705697124577,-1250.0,0.00022,3]
[312232755,1705697124599,-286.71,0.00022018,2]
[312232756,1705697124622,-3000.0,0.000229,2]
[312232757,1705697124644,-716.1,0.00022958,2]
[312232758,1705697124663,-150.0,0.00023,2]
[312232759,1705697133859,204.0,0.00022539,2]
[312232763,1705697174767,155.32243474,0.000228,2]
[312232764,1705697199260,150.0,0.00023,2]
[312232765,1705697203724,2544.47718939,0.000228,2]
[312232766,1705697221702,872.53054719,0.000228,2]
[312232772,1705697301140,272.37,0.00021186,2]
[312232773,1705697301724,3000.0,0.000229,2]
[312232774,1705697322867,150.0,0.00023,2]
[312232830,1705697411729,250.0,0.000219,2]
[312232843,1705697431889,-327.24908451,0.0002307,2]
[312232844,1705697431901,-1000.0,0.00023071,2]
[312232845,1705697431911,-286.13,0.00023331,2]
[312232846,1705697431921,-1319.56873368,0.0002334,2]
[312232847,1705697431944,-613.79126632,0.0002334,2]
[312232848,1705697431954,-157.33,0.00023346,2]
[312232849,1705697431963,-1109.97784229,0.00023371,2]
[312232850,1705697431976,-1210.24940779,0.00023371,2]
[312232851,1705697432055,-981.14561195,0.00023371,2]
[312232852,1705697432068,-309.36977282,0.00023371,2]
[312232853,1705697432080,-6389.25736515,0.00023371,2]
[312232854,1705697432090,-250.0,0.00023371,2]
[312232855,1705697432099,-290.48,0.00023371,2]
[312232856,1705697432109,-272.37,0.0002345,2]
[312232857,1705697432119,-286.13,0.00023478,2]
[312232858,1705697432129,-150.0,0.00023507,2]
[312232859,1705697432139,-1800.0,0.00023589,2]
[312232860,1705697432149,-1299.13,0.00023625,2]
[312232861,1705697432158,-286.13,0.00023625,2]
[312232862,1705697432168,-256.96,0.00023657,2]
[312232863,1705697432177,-3176.81093122,0.00023669,2]
[312232864,1705697432186,-156.58,0.00023696,2]
[312232865,1705697432195,-789.2663152,0.000237,2]
[312232866,1705697432206,-158.64,0.00023746,2]
[312232867,1705697432215,-286.13,0.00023773,2]
[312232868,1705697432225,-256.96,0.00023794,2]
[312232870,1705697432235,-999.98,0.000238,2]
[312232871,1705697432244,-1000.0,0.000238,2]
[312232872,1705697432254,-1000.0,0.000238,2]
[312232873,1705697432263,-1000.02,0.000238,2]
[312232874,1705697432273,-499.99,0.000238,2]
[312232876,1705697432283,-286.13,0.0002392,2]
[312232877,1705697432292,-262.91494934,0.00023931,2]
[312232878,1705697432301,-1300.0,0.00024,3]
[312232879,1705697432311,-3000.0,0.00024,2]
[312232880,1705697432321,-431.59040182,0.00024065,2]
[312232881,1705697432331,-201.16205573,0.00024066,2]
[312232882,1705697432341,-286.13,0.00024067,2]
[312232883,1705697432350,-286.13,0.00024215,2]
[312232884,1705697432360,-170.55472325,0.00024309,2]
[312232885,1705697432370,-598.05741815,0.00024309,2]
[312232886,1705697432379,-290.48,0.0002435,2]
[312232887,1705697432389,-789.2663152,0.00024357,2]
[312232888,1705697432399,-286.13,0.00024362,2]
[312232889,1705697432409,-436.31723575,0.00024408,2]
[312232890,1705697432419,-308.68990866,0.00024408,2]
[312232891,1705697432429,-157.33,0.00024443,2]
[312232892,1705697432439,-513.66349229,0.00024455,2]
[312232893,1705697432449,-210.5865358,0.00024455,2]
[312232894,1705697432458,-443.2957,0.00024455,2]
[312232895,1705697432468,-558.2803,0.00024455,2]
[312232896,1705697432477,-130027.81091533,0.00024455,2]
[312232897,1705697432489,-550.39902138,0.00024455,2]
[312232898,1705697432505,-292.97642527,0.00024455,2]
[312232899,1705697432517,-970.5346668,0.00024455,2]
[312232900,1705697432530,-1152.42565523,0.00024455,2]
[312232901,1705697432545,-13165.77123581,0.00024455,2]
[312232902,1705697432563,-480.34451528,0.00024455,2]
[312232903,1705697432585,-727.69660047,0.00024455,2]
[312232904,1705697432597,-600.0,0.00024455,2]
[312232905,1705697432613,-1926.7925768,0.00024455,2]
[312232906,1705697432625,-6503.23220654,0.00024455,2]
[312232922,1705697437942,-12702.26537762,0.00024455,2]
[312232923,1705697437955,-2501.84913793,0.00024455,2]
[312232924,1705697437998,-2733.36764432,0.00024455,2]
[312232925,1705697438011,-432.99651565,0.00024455,2]
[312232926,1705697438354,-9794.0,0.00024455,2]
[312232927,1705697438366,-272.07541425,0.00024455,2]
[312232928,1705697438378,-319.6918195,0.00024455,2]
[312232929,1705697438404,-3279.9314489,0.00024455,2]
[312232930,1705697439583,-345.1092363,0.00024455,2]
[312232931,1705697439640,-3687.29843367,0.00024455,2]
[312232933,1705697439654,-467.91216912,0.00024455,2]
[312233005,1705697440504,-9012.78812622,0.00024455,2]
[312233008,1705697440516,-1783.23346018,0.00024455,2]
[312233010,1705697440528,-453.8784,0.00024455,2]
[312233012,1705697440540,-352.04593963,0.00024455,2]
[312233015,1705697440556,-492.59844327,0.00024455,2]
[312233018,1705697440580,-2318.44313815,0.00024455,2]
[312233021,1705697440591,-498.86026481,0.00024455,2]
[312233023,1705697440603,-2030.05024149,0.00024455,2]
[312233025,1705697440615,-500.0,0.00024455,2]
[312233027,1705697440627,-10856.99756309,0.00024455,2]
[312233030,1705697440639,-3264.94811256,0.00024455,2]
[312233032,1705697440651,-938.06556108,0.00024455,2]
[312233035,1705697440674,-47429.65187184,0.00024455,2]
[312233037,1705697440686,-49378.01936151,0.00024455,2]
[312233039,1705697440696,-4740.02027349,0.00024457,2]
[312233041,1705697440707,-2159.10977032,0.00024457,2]
[312233043,1705697440719,-509.82256983,0.00024457,2]
[312233046,1705697440733,-359.55278636,0.00024457,2]
[312233048,1705697440743,-64.99167495,0.00024457,2]
[312233110,1705697441339,-4557.06392505,0.00024457,2]
[312233112,1705697441349,-945.1059,0.00024457,2]
[312233114,1705697441359,-1000.0,0.00024457,2]
[312233116,1705697441368,-2500.0,0.00024457,2]
[312233118,1705697441378,-210.341724,0.00024457,2]
[312233120,1705697441387,-1079.84823685,0.00024457,2]
[312233122,1705697441397,-448.88050216,0.00024457,2]
[312233124,1705697441408,-286.13,0.00024509,2]
[312233126,1705697441417,-495.2481444,0.00024547,2]
[312233128,1705697441427,-386.45072727,0.00024553,2]
[312233130,1705697441437,-253.92586632,0.00024554,2]
[312233132,1705697441446,-5264.33667276,0.00024554,2]
[312233134,1705697441456,-1041.66122871,0.00024555,2]
[312233136,1705697441466,-207.78272895,0.00024555,2]
[312233138,1705697441475,-155.0,0.00024555,2]
[312233140,1705697441485,-4477.84140557,0.00024555,2]
[312233142,1705697441494,-42710.34936772,0.00024555,2]
[312233144,1705697441504,-155.0,0.00024555,2]
[312233146,1705697441513,-5007.65404292,0.00024555,2]
[312233148,1705697441523,-400.0,0.00024555,2]
[312233150,1705697441532,-676.33503808,0.00024555,2]
[312233152,1705697441542,-404.12442134,0.00024555,2]
[312233154,1705697441554,-1463.62047272,0.00024555,2]
[312233157,1705697441566,-203.37489632,0.00024555,2]
[312233158,1705697441576,-363.88006273,0.00024555,2]
[312233160,1705697441586,-215.00753688,0.00024555,2]
[312233163,1705697441596,-1136.01929882,0.00024555,2]
[312233165,1705697441606,-486.28507678,0.00024555,2]
[312233166,1705697441616,-342.61663816,0.00024555,2]
[312233169,1705697441626,-421.02363331,0.00024555,2]
[312233171,1705697441636,-509.79874139,0.00024555,2]
[312233173,1705697441646,-541.98350192,0.00024555,2]
[312233175,1705697441658,-155.0,0.00024556,2]
[312233177,1705697441668,-2780.01755274,0.00024556,2]
[312233179,1705697441679,-300.0,0.00024556,2]
[312233181,1705697441688,-199.1114,0.00024557,2]
[312233183,1705697441699,-1566.7395,0.00024557,2]
[312233184,1705697441708,-245000.0,0.00024557,2]
[312233185,1705697441718,-843.8751,0.00024557,2]
[312233186,1705697441728,-61824.7459,0.00024557,2]
[312233187,1705697441738,-250.0,0.00024557,2]
[312233188,1705697441748,-151.97303283,0.00024557,2]
[312233189,1705697441758,-165.92298531,0.00024557,2]
[312233190,1705697441769,-800.0,0.0002463,2]
[312233191,1705697441779,-229.03990614,0.00024654,2]
[312233193,1705697441789,-430.05656718,0.00024654,2]
[312233195,1705697441798,-403.9439457,0.00024654,2]
[312233197,1705697441808,-1852.48551511,0.00024655,2]
[312233199,1705697441818,-1008.11171313,0.00024655,20]
[312233201,1705697441829,-163.8764256,0.00024655,2]
[312233203,1705697441839,-503.84036235,0.00024655,2]
[312233205,1705697441849,-156.34928234,0.00024656,2]
[312233207,1705697441860,-202.57156383,0.00024656,2]
[312233209,1705697441870,-13979.94151192,0.00024656,2]
[312233211,1705697441880,-286.13,0.00024657,2]
[312233213,1705697441890,-179.06263432,0.00024657,2]
[312233215,1705697441900,-500.0,0.00024657,2]
[312233217,1705697441913,-503.00563862,0.00024657,2]
[312233219,1705697441923,-500.0,0.00024657,2]
[312233221,1705697441934,-502.36855736,0.00024657,2]
[312233224,1705697441945,-500.0,0.00024657,2]
[312233226,1705697441955,-501.75608529,0.00024657,2]
[312233228,1705697441965,-500.0,0.00024657,2]
[312233230,1705697441975,-500.0,0.00024657,2]
[312233231,1705697441984,-500.0,0.00024657,2]
[312233233,1705697441994,-501.90531653,0.00024657,2]
[312233235,1705697442004,-500.96307778,0.00024657,2]
[312233237,1705697442014,-511.81768729,0.00024657,2]
[312233239,1705697442024,-510.24489245,0.00024657,2]
[312233241,1705697442034,-529.63491127,0.00024657,2]
[312233243,1705697442045,-515.71070518,0.00024657,2]
[312233245,1705697442056,-500.0,0.00024657,2]
[312233247,1705697442065,-500.0,0.00024657,2]
[312233249,1705697442076,-500.0,0.00024657,2]
[312233251,1705697442087,-500.0,0.00024657,2]
[312233253,1705697442097,-500.0,0.00024657,2]
[312233255,1705697442108,-500.0,0.00024657,2]
[312233257,1705697442117,-501.5241979,0.00024657,2]
[312233260,1705697442127,-500.62653587,0.00024657,2]
[312233262,1705697442137,-501.93169921,0.00024657,2]
[312233264,1705697442147,-500.8319286,0.00024657,2]
[312233266,1705697442158,-502.55398001,0.00024657,2]
[312233267,1705697442167,-500.0,0.00024657,2]
[312233270,1705697442177,-500.0,0.00024657,2]
[312233271,1705697442186,-500.0,0.00024657,2]
[312233273,1705697442196,-500.0,0.00024657,2]
[312233275,1705697442205,-544.84237102,0.00024657,2]
[312233278,1705697442215,-500.0,0.00024657,2]
[312233280,1705697442224,-500.0,0.00024657,2]
[312233282,1705697442233,-500.0,0.00024657,2]
[312233284,1705697442243,-500.0,0.00024657,2]
[312233286,1705697442252,-500.0,0.00024657,2]
[312233288,1705697442262,-500.0,0.00024657,2]
[312233289,1705697442271,-500.0,0.00024657,2]
[312233292,1705697442281,-500.0,0.00024657,2]
[312233293,1705697442290,-500.0,0.00024657,2]
[312233296,1705697442300,-500.0,0.00024657,2]
[312233297,1705697442310,-500.0,0.00024657,2]
[312233300,1705697442321,-500.0,0.00024657,2]
[312233302,1705697442330,-500.0,0.00024657,2]
[312233304,1705697442340,-500.0,0.00024657,2]
[312233306,1705697442350,-500.0,0.00024657,2]
[312233308,1705697442360,-500.0,0.00024657,2]
[312233310,1705697442370,-500.0,0.00024657,2]
[312233312,1705697442379,-500.0,0.00024657,2]
[312233314,1705697442388,-500.0,0.00024657,2]
[312233316,1705697442398,-503.6426192,0.00024657,2]
[312233317,1705697442409,-500.0,0.00024657,2]
[312233320,1705697442418,-500.0,0.00024657,2]
[312233322,1705697442428,-500.0,0.00024657,2]
[312233324,1705697442438,-500.0,0.00024657,2]
[312233326,1705697442449,-500.0,0.00024657,2]
[312233328,1705697442458,-500.0,0.00024657,2]
[312233330,1705697442467,-500.0,0.00024657,2]
[312233332,1705697442477,-500.0,0.00024657,2]
[312233334,1705697442486,-500.0,0.00024657,2]
[312233336,1705697442496,-500.0,0.00024657,2]
[312233338,1705697442505,-500.0,0.00024657,2]
[312233340,1705697442514,-500.0,0.00024657,2]
[312233342,1705697442524,-500.0,0.00024657,2]
[312233344,1705697442533,-500.0,0.00024657,2]
[312233346,1705697442544,-500.0,0.00024657,2]
[312233348,1705697442555,-500.0,0.00024657,2]
[312233350,1705697442566,-500.0,0.00024657,2]
[312233352,1705697442575,-500.0,0.00024657,2]
[312233354,1705697442585,-500.0,0.00024657,2]
[312233356,1705697442594,-500.0,0.00024657,2]
[312233358,1705697442605,-500.0,0.00024657,2]
[312233360,1705697442614,-500.0,0.00024657,2]
[312233362,1705697442624,-2000.0,0.00024657,2]
[312233364,1705697442633,-1991.90784554,0.00024657,2]
[312233366,1705697442642,-500.0,0.00024657,2]
[312233368,1705697442652,-500.0,0.00024657,2]
[312233370,1705697442662,-500.0,0.00024657,2]
[312233372,1705697442671,-500.0,0.00024657,2]
[312233374,1705697442681,-500.0,0.00024657,2]
[312233376,1705697442691,-500.0,0.00024657,2]
[312233378,1705697442700,-500.0,0.00024657,2]
[312233380,1705697442710,-500.0,0.00024657,2]
[312233383,1705697442720,-500.0,0.00024657,2]
[312233386,1705697442730,-500.0,0.00024657,2]
[312233389,1705697442740,-500.0,0.00024657,2]
[312233392,1705697442749,-500.0,0.00024657,2]
[312233394,1705697442759,-500.0,0.00024657,2]
[312233397,1705697442770,-500.0,0.00024657,2]
[312233399,1705697442779,-500.0,0.00024657,2]
[312233400,1705697442788,-500.0,0.00024657,2]
[312233402,1705697442798,-500.0,0.00024657,2]
[312233404,1705697442807,-500.0,0.00024657,2]
[312233406,1705697442816,-500.0,0.00024657,2]
[312233408,1705697442826,-500.0,0.00024657,2]
[312233410,1705697442835,-500.0,0.00024657,2]
[312233412,1705697442845,-500.0,0.00024657,2]
[312233414,1705697442854,-500.0,0.00024657,2]
[312233416,1705697442864,-500.0,0.00024657,2]
[312233418,1705697442874,-500.0,0.00024657,2]
[312233420,1705697442884,-500.0,0.00024657,2]